lending/lending_fUSD_20241211
["ID","MTS","AMOUNT","RATE_DAILY","PERIOD"]
[344948334,1733893868963,-500.0,0.00010988,2]
[344948335,1733893868973,-500.0,0.00010988,2]
[344948336,1733893868984,-500.0,0.00010988,2]
[344948337,1733893868994,-481.25622671,0.00010988,2]
[344948338,1733893869004,-500.0,0.00010988,2]
[344948339,1733893869014,-1685.94,0.00010988,2]
[344948340,1733893869024,-500.0,0.00010988,2]
[344948341,1733893869034,-1685.94,0.00010988,2]
[344948342,1733893869044,-1685.94,0.00010988,2]
[344948343,1733893869054,-1685.94,0.00010988,2]
[344948344,1733893869064,-1685.94,0.00010988,2]
[344948345,1733893869309,-1685.94,0.00010988,2]
[344948346,1733893869330,-1685.94,0.00010988,2]
[344948347,1733893869348,-1685.94,0.00010988,2]
[344948348,1733893869357,-1685.94,0.00010988,2]
[344948349,1733893869367,-1685.94,0.00010988,2]
[344948350,1733893869377,-1685.94,0.00010988,2]
[344948351,1733893869387,-1685.94,0.00010988,2]
[344948352,1733893869396,-1685.94,0.00010988,2]
[344948353,1733893869407,-1686.05681031,0.00010988,2]
[344948354,1733893869420,-1198.5,0.00010988,2]
[344948355,1733893869430,-500.0,0.00010988,2]
[344948356,1733893869440,-943.71,0.00010988,2]
[344948357,1733893869451,-943.71,0.00010988,2]
[344948358,1733893869461,-943.71,0.00010988,2]
[344948359,1733893869470,-943.71,0.00010988,2]
[344948360,1733893869480,-943.71,0.00010988,2]
[344948361,1733893869491,-427.25593631,0.00010988,2]
[344948362,1733893869501,-943.71,0.00010988,2]
[344948363,1733893869511,-943.71,0.00010988,2]
[344948364,1733893869521,-943.71,0.00010988,2]
[344948365,1733893869530,-943.71,0.00010988,2]
[344948366,1733893869540,-943.71,0.00010988,2]
[344948367,1733893869550,-943.71,0.00010988,2]
[344948368,1733893869560,-943.71,0.00010988,2]
[344948369,1733893869570,-943.71,0.00010988,2]
[344948370,1733893869580,-943.84021617,0.00010988,2]
[344948371,1733893869594,-500.0,0.00010988,2]
[344948372,1733893869603,-500.0,0.00010988,2]
[344948373,1733893869613,-878.73,0.00010988,2]
[344948374,1733893869623,-500.0,0.00010988,2]
[344948375,1733893869632,-500.0,0.00010988,2]
[344948376,1733893869642,-565.40649369,0.00010988,2]
[344948377,1733893869653,-500.0,0.00010988,2]
[344948378,1733893869663,-711.26,0.00010988,2]
[344948379,1733893869674,-500.0,0.00010988,2]
[344948380,1733893869683,-500.0,0.00010988,2]
[344948381,1733893869693,-500.0,0.00010988,2]
[344948382,1733893869703,-500.0,0.00010988,2]
[344948383,1733893869713,-500.0,0.00010988,2]
[344948384,1733893869723,-444.49744397,0.00010988,2]
[344948385,1733893869733,-500.0,0.00010988,2]
[344948386,1733893869747,-500.0,0.00010988,2]
[344948387,1733893869757,-500.0,0.00010988,2]
[344948388,1733893869767,-500.0,0.00010988,2]
[344948389,1733893869777,-500.0,0.00010988,2]
[344948390,1733893869787,-487.68828467,0.00010988,2]
[344948391,1733893869797,-500.0,0.00010988,2]
[344948392,1733893869807,-500.0,0.00010988,2]
[344948393,1733893869817,-500.0,0.00010988,2]
[344948394,1733893869827,-501.89,0.00010988,2]
[344948395,1733893869839,-501.89,0.00010988,2]
[344948396,1733893869849,-501.89,0.00010988,2]
[344948397,1733893869859,-501.89,0.00010988,2]
[344948398,1733893869869,-501.89,0.00010988,2]
[344948399,1733893869878,-501.89,0.00010988,2]
[344948400,1733893869888,-501.89,0.00010988,2]
[344948401,1733893869897,-501.89,0.00010988,2]
[344948402,1733893869907,-1207.4,0.00010988,2]
[344948403,1733893869917,-501.89,0.00010988,2]
[344948404,1733893869927,-501.89,0.00010988,2]
[344948405,1733893869937,-501.89,0.00010988,2]
[344948406,1733893869946,-501.89,0.00010988,2]
[344948407,1733893869956,-501.89,0.00010988,2]
[344948408,1733893869966,-502.0704577,0.00010988,2]
[344948409,1733893869975,-500.0,0.00010988,2]
[344948410,1733893869985,-500.0,0.00010988,2]
[344948411,1733893869995,-500.0,0.00010988,2]
[344948412,1733893870004,-726.26,0.00010988,2]
[344948413,1733893870014,-726.26,0.00010988,2]
[344948414,1733893870024,-500.0,0.00010988,2]
[344948415,1733893870034,-500.0,0.00010988,2]
[344948416,1733893870043,-500.0,0.00010988,2]
[344948417,1733893870053,-500.0,0.00010988,2]
[344948418,1733893870062,-500.0,0.00010988,2]
[344948419,1733893870073,-500.0,0.00010988,2]
[344948420,1733893870082,-585.07,0.00010988,2]
[344948421,1733893870093,-500.0,0.00010988,2]
[344948422,1733893870103,-659.26,0.00010988,2]
[344948423,1733893870113,-500.0,0.00010988,2]
[344948424,1733893870122,-500.0,0.00010988,2]
[344948425,1733893870133,-500.0,0.00010988,2]
[344948426,1733893870147,-500.0,0.00010988,2]
[344948427,1733893870157,-500.0,0.00010988,2]
[344948428,1733893870167,-500.0,0.00010988,2]
[344948429,1733893870176,-500.0,0.00010988,2]
[344948430,1733893870186,-1219.99,0.00010988,2]
[344948431,1733893870196,-500.0,0.00010988,2]
[344948432,1733893870205,-500.0,0.00010988,2]
[344948433,1733893870215,-1535.54,0.00010988,2]
[344948434,1733893870224,-500.0,0.00010988,2]
[344948435,1733893870234,-500.0,0.00010988,2]
[344948436,1733893870243,-500.0,0.00010988,2]
[344948437,1733893870252,-783.73,0.00010988,2]
[344948438,1733893870262,-379.63,0.00010988,2]
[344948439,1733893870271,-500.0,0.00010988,2]
[344948440,1733893870281,-607.19,0.00010988,2]
[344948441,1733893870290,-205.27,0.00010988,2]
[344948442,1733893870300,-515.47,0.00010988,2]
[344948443,1733893870310,-701.53,0.00010988,2]
[344948444,1733893870319,-500.0,0.00010988,2]
[344948445,1733893870329,-643.73,0.00010988,2]
[344948446,1733893870341,-500.0,0.00010988,2]
[344948447,1733893870351,-500.0,0.00010988,2]
[344948448,1733893870360,-1615.78,0.00010988,2]
[344948449,1733893870370,-500.0,0.00010988,2]
[344948450,1733893870379,-500.0,0.00010988,2]
[344948451,1733893870389,-500.0,0.00010988,2]
[344948452,1733893870399,-500.0,0.00010988,2]
[344948453,1733893870410,-500.0,0.00010988,2]
[344948454,1733893870420,-500.0,0.00010988,2]
[344948455,1733893870429,-500.0,0.00010988,2]
[344948456,1733893870439,-575.55716631,0.00010988,2]
[344948457,1733893870448,-500.0,0.00010988,2]
[344948458,1733893870459,-500.0,0.00010988,2]
[344948459,1733893870468,-500.0,0.00010988,2]
[344948460,1733893870478,-500.0,0.00010988,2]
[344948461,1733893870490,-668.93,0.00010988,2]
[344948462,1733893870500,-437.71831768,0.00010988,2]
[344948463,1733893870510,-500.0,0.00010988,2]
[344948464,1733893870520,-500.0,0.00010988,2]
[344948465,1733893870530,-500.0,0.00010988,2]
[344948466,1733893870539,-11970.61,0.00010988,2]
[344948467,1733893870549,-4348.04,0.00010988,2]
[344948468,1733893870559,-500.0,0.00010988,2]
[344948469,1733893870569,-2196.47,0.00010988,2]
[344948470,1733893870578,-5459.11,0.00010988,2]
[344948471,1733893870591,-500.0,0.00010988,2]
[344948472,1733893870600,-500.0,0.00010988,2]
[344948473,1733893870610,-1159.76,0.00010988,2]
[344948474,1733893870620,-1835.02,0.00010988,2]
[344948475,1733893870630,-500.0,0.00010988,2]
[344948476,1733893870641,-652.47,0.00010988,2]
[344948477,1733893870650,-10095.29,0.00010988,2]
[344948478,1733893870660,-500.0,0.00010988,2]
[344948479,1733893870671,-1018.17,0.00010988,2]
[344948480,1733893870681,-500.0,0.00010988,2]
[344948481,1733893870691,-500.0,0.00010988,2]
[344948482,1733893870701,-2800.39,0.00010988,2]
[344948483,1733893870711,-500.0,0.00010988,2]
[344948484,1733893870722,-500.0,0.00010988,2]
[344948485,1733893870732,-808.17,0.00010988,2]
[344948486,1733893870744,-500.0,0.00010988,2]
[344948487,1733893870754,-1725.19,0.00010988,2]
[344948488,1733893870767,-500.0,0.00010988,2]
[344948489,1733893870778,-500.0,0.00010988,2]
[344948490,1733893870788,-554.35,0.00010988,2]
[344948491,1733893870799,-866.37,0.00010988,2]
[344948492,1733893870810,-500.0,0.00010988,2]
[344948493,1733893870821,-500.0,0.00010988,2]
[344948494,1733893870831,-500.0,0.00010988,2]
[344948495,1733893870851,-330.45,0.00010988,2]
[344948496,1733893870862,-710.67,0.00010988,2]
[344948497,1733893870873,-500.0,0.00010988,2]
[344948498,1733893870883,-500.0,0.00010988,2]
[344948499,1733893870893,-681.14,0.00010988,2]
[344948500,1733893870903,-1631.03,0.00010988,2]
[344948501,1733893870914,-353.42322382,0.00010988,2]
[344948502,1733893870923,-500.0,0.00010988,2]
[344948503,1733893870933,-500.0,0.00010988,2]
[344948504,1733893870943,-500.0,0.00010988,2]
[344948505,1733893870953,-500.0,0.00010988,2]
[344948506,1733893870963,-1288.64,0.00010988,2]
[344948507,1733893870974,-500.0,0.00010988,2]
[344948508,1733893870984,-500.0,0.00010988,2]
[344948509,1733893870993,-4837.38,0.00010988,2]
[344948510,1733893871003,-1496.95,0.00010988,2]
[344948511,1733893871012,-500.0,0.00010988,2]
[344948512,1733893871022,-1419.57,0.00010988,2]
[344948513,1733893871032,-532.74,0.00010988,2]
[344948514,1733893871042,-500.0,0.00010988,2]
[344948515,1733893871051,-500.0,0.00010989,2]
[344948516,1733893871061,-600.1,0.00010989,2]
[344948517,1733893871071,-500.0,0.00010989,2]
[344948518,1733893871082,-500.0,0.00010989,2]
[344948519,1733893871100,-501.89020482,0.00010989,2]
[344948520,1733893871109,-500.0,0.00010989,2]
[344948521,1733893871119,-500.0,0.00010989,2]
[344948522,1733893871128,-500.0,0.00010989,2]
[344948523,1733893871138,-500.0,0.00010989,2]
[344948524,1733893871147,-1198.5,0.00010989,2]
[344948525,1733893871156,-524.42616891,0.00010989,2]
[344948526,1733893871165,-500.0,0.00010989,2]
[344948527,1733893871175,-500.0,0.00010989,2]
[344948528,1733893871184,-878.73,0.00010989,2]
[344948529,1733893871194,-500.0,0.00010989,2]
[344948530,1733893871204,-500.0,0.00010989,2]
[344948531,1733893871214,-711.26,0.00010989,2]
[344948532,1733893871224,-500.0,0.00010989,2]
[344948533,1733893871234,-500.0,0.00010989,2]
[344948534,1733893871243,-500.0,0.00010989,2]
[344948535,1733893871253,-1207.4,0.00010989,2]
[344948536,1733893871263,-500.0,0.00010989,2]
[344948537,1733893871273,-522.09906059,0.00010989,2]
[344948538,1733893871285,-500.0,0.00010989,2]
[344948539,1733893871294,-726.26,0.00010989,2]
[344948540,1733893871304,-726.26,0.00010989,2]
[344948541,1733893871313,-500.0,0.00010989,2]
[344948542,1733893871323,-500.0,0.00010989,2]
[344948543,1733893871332,-500.0,0.00010989,2]
[344948544,1733893871345,-699.79,0.00010989,2]
[344948545,1733893871354,-452.52,0.00010989,2]
[344948546,1733893871364,-500.0,0.00010989,2]
[344948547,1733893871373,-981.59,0.00010989,2]
[344948548,1733893871383,-594.49,0.00010989,2]
[344948549,1733893871392,-500.0,0.00010989,2]
[344948550,1733893871402,-500.0,0.00010989,2]
[344948551,1733893871415,-585.07,0.00010989,2]
[344948552,1733893871424,-281.37020422,0.00010989,2]
[344948553,1733893871434,-586.99,0.00010989,2]
[344948554,1733893871444,-659.26,0.00010989,2]
[344948555,1733893871455,-500.0,0.00010989,2]
[344948556,1733893871464,-507.02,0.00010989,2]
[344948557,1733893871474,-500.0,0.00010989,2]
[344948558,1733893871485,-500.0,0.00010989,2]
[344948559,1733893871495,-514.05,0.00010989,2]
[344948560,1733893871504,-500.0,0.00010989,2]
[344948561,1733893871513,-500.0,0.00010989,2]
[344948562,1733893871523,-500.0,0.00010989,2]
[344948563,1733893871532,-501.1720175,0.00010989,2]
[344948564,1733893871542,-500.0,0.00010989,2]
[344948565,1733893871551,-606.97,0.00010989,2]
[344948566,1733893871561,-500.0,0.00010989,2]
[344948567,1733893871571,-1219.99,0.00010989,2]
[344948568,1733893871582,-162.99,0.00010989,2]
[344948569,1733893871595,-500.0,0.00010989,2]
[344948570,1733893871605,-1535.54,0.00010989,2]
[344948571,1733893871615,-500.0,0.00010989,2]
[344948572,1733893871624,-500.0,0.00010989,2]
[344948573,1733893871634,-450.95,0.00010989,2]
[344948574,1733893871644,-783.73,0.00010989,2]
[344948575,1733893871654,-500.0,0.00010989,2]
[344948576,1733893871664,-607.19,0.00010989,2]
[344948577,1733893871674,-701.53,0.00010989,2]
[344948578,1733893871684,-500.0,0.00010989,2]
[344948579,1733893871693,-643.73,0.00010989,2]
[344948580,1733893871708,-500.0,0.00010989,2]
[344948581,1733893871721,-500.0,0.00010989,2]
[344948582,1733893871731,-500.0,0.00010989,2]
[344948583,1733893871740,-1615.78,0.00010989,2]
[344948584,1733893871751,-500.0,0.00010989,2]
[344948585,1733893871760,-500.0,0.00010989,2]
[344948586,1733893871770,-176.42,0.00010989,2]
[344948587,1733893871780,-500.0,0.00010989,2]
[344948588,1733893871791,-500.0,0.00010989,2]
[344948589,1733893871801,-500.0,0.00010989,2]
[344948590,1733893871815,-500.0,0.00010989,2]
[344948591,1733893871825,-355.97034686,0.00010989,2]
[344948592,1733893871837,-668.93,0.00010989,2]
[344948593,1733893871846,-500.0,0.00010989,2]
[344948594,1733893871856,-500.0,0.00010989,2]
[344948595,1733893871865,-7624.91,0.00010989,2]
[344948596,1733893871874,-500.0,0.00010989,2]
[344948597,1733893871884,-11970.61,0.00010989,2]
[344948598,1733893871893,-4348.04,0.00010989,2]
[344948599,1733893871903,-500.0,0.00010989,2]
[344948600,1733893871913,-2196.47,0.00010989,2]
[344948601,1733893871922,-5459.11,0.00010989,2]
[344948602,1733893871931,-500.0,0.00010989,2]
[344948603,1733893871941,-771.42,0.00010989,2]
[344948604,1733893871950,-500.0,0.00010989,2]
[344948605,1733893871960,-500.0,0.00010989,2]
[344948606,1733893871970,-1159.76,0.00010989,2]
[344948607,1733893871980,-1835.02,0.00010989,2]
[344948608,1733893871990,-500.0,0.00010989,2]
[344948609,1733893872000,-500.0,0.00010989,2]
[344948610,1733893872009,-652.47,0.00010989,2]
[344948611,1733893872019,-500.0,0.00010989,2]
[344948612,1733893872029,-10095.29,0.00010989,2]
[344948613,1733893872039,-500.0,0.00010989,2]
[344948614,1733893872049,-2955.39,0.00010989,2]
[344948615,1733893872058,-1018.17,0.00010989,2]
[344948616,1733893872068,-1595.45,0.00010989,2]
[344948617,1733893872077,-500.0,0.00010989,2]
[344948618,1733893872088,-500.0,0.00010989,2]
[344948619,1733893872097,-2800.39,0.00010989,2]
[344948620,1733893872107,-500.0,0.00010989,2]
[344948621,1733893872117,-500.0,0.00010989,2]
[344948622,1733893872126,-2252.59,0.00010989,2]
[344948623,1733893872136,-808.17,0.00010989,2]
[344948624,1733893872146,-500.0,0.00010989,2]
[344948625,1733893872155,-1229.25,0.00010989,2]
[344948626,1733893872165,-1725.19,0.00010989,2]
[344948627,1733893872175,-500.0,0.00010989,2]
[344948628,1733893872184,-2297.26,0.00010989,2]
[344948629,1733893872193,-500.0,0.00010989,2]
[344948630,1733893872202,-698.36,0.00010989,2]
[344948631,1733893872212,-554.35,0.00010989,2]
[344948632,1733893872223,-866.37,0.00010989,2]
[344948633,1733893872235,-412.8,0.00010989,2]
[344948634,1733893872247,-500.0,0.00010989,2]
[344948635,1733893872258,-500.0,0.00010989,2]
[344948636,1733893872269,-500.0,0.00010989,2]
[344948637,1733893872279,-3754.03,0.00010989,2]
[344948638,1733893872289,-710.67,0.00010989,2]
[344948639,1733893872300,-500.0,0.00010989,2]
[344948640,1733893872311,-3014.88,0.00010989,2]
[344948641,1733893872322,-500.0,0.00010989,2]
[344948642,1733893872334,-500.0,0.00010989,2]
[344948643,1733893872349,-591.43,0.00010989,2]
[344948644,1733893872362,-681.14,0.00010989,2]
[344948645,1733893872373,-500.0,0.00010989,2]
[344948646,1733893872384,-1631.03,0.00010989,2]
[344948647,1733893872396,-863.28,0.00010989,2]
[344948648,1733893872407,-6159.96,0.00010989,2]
[344948649,1733893872422,-500.0,0.00010989,2]
[344948650,1733893872432,-500.0,0.00010989,2]
[344948651,1733893872444,-500.0,0.00010989,2]
[344948652,1733893872456,-9125.78,0.00010989,2]
[344948653,1733893872468,-500.0,0.00010989,2]
[344948654,1733893872479,-1288.64,0.00010989,2]
[344948655,1733893872490,-500.0,0.00010989,2]
[344948656,1733893872501,-500.0,0.00010989,2]
[344948657,1733893872513,-1849.94,0.00010989,2]
[344948658,1733893872523,-500.0,0.00010989,2]
[344948659,1733893872535,-4837.38,0.00010989,2]
[344948660,1733893872546,-1306.76,0.00010989,2]
[344948661,1733893872557,-500.0,0.00010989,2]
[344948662,1733893872568,-4778.19,0.00010989,2]
[344948663,1733893872580,-532.74,0.00010989,2]
[344948664,1733893872596,-867.01,0.00010989,2]
[344948665,1733893872607,-575.36,0.00010989,2]
[344948666,1733893872618,-500.0,0.0001099,2]
[344948667,1733893872629,-500.0,0.0001099,2]
[344948668,1733893872640,-1198.5,0.0001099,2]
[344948669,1733893872650,-500.0,0.0001099,2]
[344948670,1733893872663,-500.0,0.0001099,2]
[344948671,1733893872674,-878.73,0.0001099,2]
[344948672,1733893872685,-500.0,0.0001099,2]
[344948673,1733893872697,-500.0,0.0001099,2]
[344948674,1733893872708,-711.26,0.0001099,2]
[344948675,1733893872720,-500.0,0.0001099,2]
[344948676,1733893872731,-241.00918561,0.0001099,2]
[344948677,1733893872741,-500.0,0.0001099,2]
[344948678,1733893872752,-1207.4,0.0001099,2]
[344948679,1733893872764,-500.0,0.0001099,2]
[344948680,1733893872775,-500.0,0.0001099,2]
[344948681,1733893872787,-726.26,0.0001099,2]
[344948682,1733893872799,-488.17216518,0.0001099,2]
[344948683,1733893872810,-500.0,0.0001099,2]
[344948684,1733893872820,-570.68243161,0.0001099,2]
[344948685,1733893872831,-699.79,0.0001099,2]
[344948686,1733893872844,-500.0,0.0001099,2]
[344948687,1733893872854,-981.59,0.0001099,2]
[344948688,1733893872865,-500.0,0.0001099,2]
[344948689,1733893872875,-500.0,0.0001099,2]
[344948690,1733893872886,-585.07,0.0001099,2]
[344948691,1733893872896,-586.99,0.0001099,2]
[344948692,1733893872908,-659.26,0.0001099,2]
[344948693,1733893872921,-500.0,0.0001099,2]
[344948694,1733893872933,-507.02,0.0001099,2]
[344948695,1733893872943,-500.0,0.0001099,2]
[344948696,1733893872954,-500.0,0.0001099,2]
[344948697,1733893872963,-514.05,0.0001099,2]
[344948698,1733893872973,-500.0,0.0001099,2]
[344948699,1733893872984,-500.0,0.0001099,2]
[344948700,1733893872994,-283.43530824,0.0001099,2]
[344948701,1733893873005,-500.0,0.0001099,2]
[344948702,1733893873017,-500.0,0.0001099,2]
[344948703,1733893873029,-1219.99,0.0001099,2]
[344948704,1733893873040,-500.0,0.0001099,2]
[344948705,1733893873051,-1535.54,0.0001099,2]
[344948706,1733893873062,-500.0,0.0001099,2]
[344948707,1733893873073,-500.0,0.0001099,2]
[344948708,1733893873083,-783.73,0.0001099,2]
[344948709,1733893873098,-500.0,0.0001099,2]
[344948710,1733893873108,-607.19,0.0001099,2]
[344948711,1733893873119,-701.53,0.0001099,2]
[344948712,1733893873129,-500.0,0.0001099,2]
[344948713,1733893873141,-643.73,0.0001099,2]
[344948714,1733893873152,-500.0,0.0001099,2]
[344948715,1733893873162,-500.0,0.0001099,2]
[344948716,1733893873173,-500.0,0.0001099,2]
[344948717,1733893873183,-1615.78,0.0001099,2]
[344948718,1733893873194,-500.0,0.0001099,2]
[344948719,1733893873205,-638.31,0.0001099,2]
[344948720,1733893873217,-500.0,0.0001099,2]
[344948721,1733893873227,-500.0,0.0001099,2]
[344948722,1733893873238,-500.0,0.0001099,2]
[344948723,1733893873249,-571.63,0.0001099,2]
[344948724,1733893873260,-668.93,0.0001099,2]
[344948725,1733893873270,-500.0,0.0001099,2]
[344948726,1733893873281,-230.59,0.0001099,2]
[344948727,1733893873291,-500.0,0.0001099,2]
[344948728,1733893873302,-11970.61,0.0001099,2]
[344948729,1733893873312,-4348.04,0.0001099,2]
[344948730,1733893873323,-500.0,0.0001099,2]
[344948731,1733893873333,-2196.47,0.0001099,2]
[344948732,1733893873345,-5459.11,0.0001099,2]
[344948733,1733893873356,-500.0,0.0001099,2]
[344948734,1733893873366,-500.0,0.0001099,2]
[344948735,1733893873376,-500.0,0.0001099,2]
[344948736,1733893873387,-1159.76,0.0001099,2]
[344948737,1733893873398,-1835.02,0.0001099,2]
[344948738,1733893873410,-500.0,0.0001099,2]
[344948739,1733893873425,-500.0,0.0001099,2]
[344948740,1733893873436,-652.47,0.0001099,2]
[344948741,1733893873446,-500.0,0.0001099,2]
[344948742,1733893873459,-10095.29,0.0001099,2]
[344948743,1733893873470,-1018.17,0.0001099,2]
[344948744,1733893873480,-500.0,0.0001099,2]
[344948745,1733893873491,-500.0,0.0001099,2]
[344948746,1733893873502,-2800.39,0.0001099,2]
[344948747,1733893873513,-647.67571526,0.0001099,2]
[344948748,1733893873523,-260.24,0.0001099,2]
[344948749,1733893873534,-808.17,0.0001099,2]
[344948750,1733893873545,-1725.19,0.0001099,2]
[344948751,1733893873555,-500.0,0.0001099,2]
[344948752,1733893873565,-500.0,0.0001099,2]
[344948753,1733893873576,-554.35,0.0001099,2]
[344948754,1733893873588,-866.37,0.0001099,2]
[344948755,1733893873598,-500.0,0.0001099,2]
[344948756,1733893873608,-500.0,0.0001099,2]
[344948757,1733893873619,-500.0,0.0001099,2]
[344948758,1733893873630,-710.67,0.0001099,2]
[344948759,1733893873643,-500.0,0.0001099,2]
[344948760,1733893873667,-500.0,0.0001099,2]
[344948761,1733893873679,-500.0,0.0001099,2]
[344948762,1733893873690,-681.14,0.0001099,2]
[344948763,1733893873700,-500.0,0.0001099,2]
[344948764,1733893873710,-1631.03,0.0001099,2]
[344948765,1733893873721,-500.0,0.0001099,2]
[344948766,1733893873731,-500.0,0.0001099,2]
[344948767,1733893873742,-500.0,0.0001099,2]
[344948768,1733893873753,-500.0,0.0001099,2]
[344948769,1733893873763,-1288.64,0.0001099,2]
[344948770,1733893873774,-500.0,0.0001099,2]
[344948771,1733893873785,-423.7,0.0001099,2]
[344948772,1733893873795,-500.0,0.0001099,2]
[344948773,1733893873806,-4837.38,0.0001099,2]
[344948774,1733893873816,-500.0,0.0001099,2]
[344948775,1733893873827,-532.74,0.0001099,2]
[344948776,1733893873840,-575.36,0.0001099,2]
[344948777,1733893873850,-500.0,0.00010991,2]
[344948778,1733893873861,-600.1,0.00010991,2]
[344948779,1733893873873,-500.0,0.00010991,2]
[344948780,1733893873883,-500.0,0.00010991,2]
[344948781,1733893873895,-500.0,0.00010991,2]
[344948782,1733893873905,-500.0,0.00010991,2]
[344948783,1733893873916,-150.0,0.00010991,2]
[344948784,1733893873927,-726.26,0.00010991,2]
[344948785,1733893873938,-726.26,0.00010991,2]
[344948786,1733893873949,-726.26,0.00010991,2]
[344948787,1733893873960,-726.26,0.00010991,2]
[344948788,1733893873970,-726.26,0.00010991,2]
[344948789,1733893873981,-726.26,0.00010991,2]
[344948790,1733893873993,-726.30994466,0.00010991,2]
[344948791,1733893874003,-500.0,0.00010992,2]
[344948792,1733893874014,-413.67098824,0.00010992,2]
[344948793,1733893874025,-600.1,0.00010992,2]
[344948794,1733893874037,-600.1,0.00010992,2]
[344948795,1733893874048,-600.1,0.00010992,2]
[344948796,1733893874058,-600.1,0.00010992,2]
[344948797,1733893874068,-600.1,0.00010992,2]
[344948798,1733893874080,-600.1,0.00010992,2]
[344948799,1733893874094,-600.1,0.00010992,2]
[344948800,1733893874105,-600.1,0.00010992,2]
[344948801,1733893874116,-600.1,0.00010992,2]
[344948802,1733893874126,-600.1,0.00010992,2]
[344948803,1733893874136,-600.1,0.00010992,2]
[344948804,1733893874147,-600.1,0.00010992,2]
[344948805,1733893874157,-600.1,0.00010992,2]
[344948806,1733893874168,-600.13466591,0.00010992,2]
[344948807,1733893874178,-500.0,0.00010992,2]
[344948808,1733893874188,-193.34063788,0.00010992,2]
[344948809,1733893874199,-500.0,0.00010992,2]
[344948810,1733893874209,-500.0,0.00010992,2]
[344948811,1733893874219,-500.0,0.00010992,2]
[344948812,1733893874230,-500.0,0.00010992,2]
[344948813,1733893874240,-500.0,0.00010992,2]
[344948814,1733893874251,-500.0,0.00010992,2]
[344948815,1733893874261,-480.26311072,0.00010992,2]
[344948816,1733893874275,-603.02427895,0.00010992,2]
[344948817,1733893874285,-500.0,0.00010992,2]
[344948818,1733893874296,-500.0,0.00010992,2]
[344948819,1733893874306,-500.0,0.00010992,2]
[344948820,1733893874324,-500.0,0.00010992,2]
[344948821,1733893874345,-500.0,0.00010992,2]
[344948822,1733893874356,-500.0,0.00010992,2]
[344948823,1733893874367,-577.45693666,0.00010992,2]
[344948824,1733893874378,-902.581,0.00010993,2]
[344948825,1733893874389,-7624.91,0.00010994,2]
[344948826,1733893874400,-771.42,0.00010994,2]
[344948827,1733893874412,-2955.39,0.00010994,2]
[344948828,1733893874425,-1595.45,0.00010994,2]
[344948829,1733893874437,-2252.59,0.00010994,2]
[344948830,1733893874448,-251.02096308,0.00010994,2]
[344948831,1733893874459,-1229.25,0.00010994,2]
[344948832,1733893874470,-2297.26,0.00010994,2]
[344948833,1733893874481,-698.36,0.00010994,2]